fUSD/lending_fUSD_20240215
["ID","MTS","AMOUNT","RATE_DAILY","PERIOD"]
[314113176,1707993034999,-573.56973932,0.00039548,7]
[314113177,1707993035009,-500.0,0.00039548,7]
[314113178,1707993035019,-500.0,0.00039548,7]
[314113179,1707993035029,-500.0,0.00039548,7]
[314113180,1707993035038,-500.0,0.00039548,7]
[314113181,1707993035048,-500.0,0.00039549,7]
[314113182,1707993035058,-500.0,0.00039549,7]
[314113183,1707993035068,-500.0,0.00039549,7]
[314113184,1707993035077,-500.0,0.00039549,7]
[314113185,1707993035086,-547.67709298,0.00039549,7]
[314113186,1707993035096,-500.0,0.00039549,7]
[314113187,1707993035105,-500.0,0.00039549,2]
[314113188,1707993035114,-500.0,0.00039549,7]
[314113189,1707993035124,-500.0,0.00039549,7]
[314113190,1707993035133,-830.19,0.00039549,7]
[314113191,1707993035142,-401.31690225,0.00039549,7]
[314113192,1707993035151,-220.0,0.00039549,7]
[314113193,1707993035161,-572.19,0.00039549,7]
[314113194,1707993035171,-500.0,0.00039549,7]
[314113195,1707993035180,-500.0,0.00039549,7]
[314113196,1707993035190,-500.0,0.00039549,7]
[314113197,1707993035200,-500.0,0.00039549,7]
[314113198,1707993035209,-496.51841191,0.00039549,7]
[314113199,1707993035219,-631.09438078,0.00039549,7]
[314113200,1707993035228,-567.37873385,0.00039549,7]
[314113201,1707993035238,-500.0,0.00039549,7]
[314113202,1707993035248,-500.0,0.00039549,7]
[314113203,1707993035257,-500.0,0.00039549,7]
[314113204,1707993035266,-500.0,0.00039549,7]
[314113205,1707993035276,-540.72994771,0.00039549,7]
[314113206,1707993035286,-500.0,0.00039549,7]
[314113207,1707993035295,-500.0,0.00039549,7]
[314113208,1707993035305,-500.0,0.00039549,7]
[314113209,1707993035314,-500.0,0.00039549,7]
[314113210,1707993035323,-500.0,0.00039549,7]
[314113211,1707993035333,-500.0,0.00039549,7]
[314113212,1707993035342,-500.0,0.00039549,7]
[314113213,1707993035351,-500.0,0.00039549,7]
[314113214,1707993035361,-527.61643787,0.00039549,7]
[314113215,1707993035370,-500.0,0.00039549,7]
[314113216,1707993035380,-500.0,0.00039549,7]
[314113217,1707993035389,-500.0,0.00039549,7]
[314113218,1707993035398,-500.0,0.00039549,7]
[314113219,1707993035408,-500.0,0.00039549,7]
[314113220,1707993035417,-500.0,0.00039549,7]
[314113221,1707993035427,-529.0353646,0.00039549,7]
[314113222,1707993035436,-539.33226527,0.00039549,7]
[314113223,1707993035446,-500.0,0.00039549,7]
[314113224,1707993035455,-379.41761559,0.00039549,7]
[314113225,1707993035465,-500.0,0.00039549,7]
[314113226,1707993035474,-500.0,0.00039549,7]
[314113227,1707993035483,-500.0,0.00039549,7]
[314113228,1707993035493,-500.0,0.00039549,7]
[314113229,1707993035502,-500.0,0.00039549,7]
[314113230,1707993035511,-500.0,0.00039549,7]
[314113231,1707993035521,-540.53930927,0.00039549,7]
[314113232,1707993035530,-500.0,0.00039549,7]
[314113233,1707993035540,-543.72979583,0.00039549,7]
[314113234,1707993035550,-500.0,0.00039549,7]
[314113235,1707993035559,-500.0,0.00039549,7]
[314113236,1707993035569,-500.0,0.00039549,7]
[314113237,1707993035579,-500.0,0.00039549,7]
[314113238,1707993035588,-573.66076769,0.00039549,7]
[314113239,1707993035598,-500.0,0.00039549,7]
[314113240,1707993035608,-500.0,0.00039549,7]
[314113241,1707993035617,-500.0,0.00039549,7]
[314113242,1707993035627,-500.0,0.00039549,7]
[314113243,1707993035636,-500.0,0.00039549,7]
[314113244,1707993035646,-500.0,0.00039549,7]
[314113245,1707993035656,-500.0,0.00039549,7]
[314113246,1707993035665,-500.0,0.00039549,7]
[314113247,1707993035674,-566.07249277,0.00039549,7]
[314113248,1707993035684,-500.0,0.00039549,7]
[314113249,1707993035694,-500.0,0.00039549,7]
[314113250,1707993035703,-500.0,0.00039549,7]
[314113251,1707993035713,-500.0,0.00039549,7]
[314113252,1707993035722,-500.0,0.00039549,7]
[314113253,1707993035732,-181.42826435,0.00039549,7]
[314113254,1707993035878,-500.0,0.00039549,7]
[314113255,1707993035888,-500.0,0.00039549,7]
[314113256,1707993035898,-500.0,0.00039549,7]
[314113257,1707993035908,-573.54,0.00039549,7]
[314113258,1707993035917,-500.0,0.00039549,7]
[314113259,1707993035927,-500.0,0.00039549,7]
[314113260,1707993035936,-500.0,0.00039549,7]
[314113261,1707993035946,-499.0,0.00039549,7]
[314113262,1707993035955,-513.96,0.00039549,7]
[314113263,1707993035965,-541.27147141,0.00039549,7]
[314113264,1707993035974,-500.0,0.00039549,7]
[314113265,1707993035983,-500.0,0.00039549,7]
[314113266,1707993035992,-500.0,0.00039549,7]
[314113267,1707993036001,-500.0,0.00039549,7]
[314113268,1707993036011,-500.0,0.00039549,7]
[314113269,1707993036021,-500.0,0.00039549,7]
[314113270,1707993036030,-500.0,0.00039549,7]
[314113271,1707993036040,-541.11135037,0.00039549,7]
[314113272,1707993036050,-8853.01,0.00039549,7]
[314113273,1707993036060,-555.02475464,0.00039549,7]
[314113274,1707993036070,-168.14094544,0.00039549,7]
[314113275,1707993036079,-500.0,0.00039549,7]
[314113276,1707993036088,-558.95468528,0.00039549,7]
[314113277,1707993036098,-553.58306482,0.00039549,7]
[314113278,1707993036107,-550.87801506,0.00039549,7]
[314113279,1707993036117,-515.59,0.00039549,7]
[314113280,1707993036127,-500.0,0.00039549,7]
[314113281,1707993036136,-576.0,0.00039549,7]
[314113282,1707993036147,-537.80064538,0.00039549,7]
[314113283,1707993036157,-500.0,0.00039549,7]
[314113284,1707993036167,-543.17439956,0.00039549,7]
[314113285,1707993036177,-500.0,0.00039549,7]
[314113286,1707993036186,-500.0,0.00039549,7]
[314113287,1707993036196,-500.0,0.00039549,7]
[314113288,1707993036206,-500.0,0.00039549,7]
[314113289,1707993036215,-500.0,0.00039549,7]
[314113290,1707993036224,-500.0,0.00039549,7]
[314113291,1707993036234,-500.0,0.00039549,7]
[314113292,1707993036243,-500.0,0.00039549,7]
[314113293,1707993036252,-500.0,0.00039549,7]
[314113294,1707993036261,-500.0,0.00039549,7]
[314113295,1707993036271,-500.0,0.00039549,7]
[314113296,1707993036280,-500.0,0.00039549,7]
[314113297,1707993036290,-500.0,0.00039549,7]
[314113298,1707993036300,-500.0,0.00039549,7]
[314113299,1707993036309,-500.0,0.00039549,7]
[314113300,1707993036318,-500.0,0.00039549,7]
[314113301,1707993036331,-500.0,0.00039549,7]
[314113302,1707993036341,-500.0,0.00039549,7]
[314113303,1707993036350,-500.0,0.00039549,2]
[314113304,1707993036360,-216.15251474,0.00039549,7]
[314113305,1707993036370,-500.0,0.00039549,7]
[314113306,1707993036380,-500.0,0.00039549,7]
[314113307,1707993036389,-500.0,0.00039549,7]
[314113308,1707993036399,-500.0,0.00039549,7]
[314113309,1707993036408,-500.0,0.00039549,7]
[314113310,1707993036418,-500.0,0.00039549,7]
[314113311,1707993036428,-500.0,0.00039549,7]
[314113312,1707993036438,-500.0,0.00039549,7]
[314113313,1707993036447,-500.0,0.00039549,7]
[314113314,1707993036456,-500.0,0.00039549,120]
[314113315,1707993036466,-500.0,0.00039549,7]
[314113316,1707993036476,-500.0,0.00039549,7]
[314113317,1707993036485,-192.80598851,0.00039549,7]
[314113318,1707993036494,-210.39,0.00039549,7]
[314113319,1707993036503,-192.75091944,0.00039549,7]
[314113320,1707993036513,-500.0,0.00039549,7]
[314113321,1707993036522,-612.4,0.00039549,7]
[314113322,1707993036532,-500.0,0.00039549,7]
[314113323,1707993036541,-500.0,0.00039549,7]
[314113324,1707993036552,-500.0,0.00039549,7]
[314113325,1707993036561,-500.0,0.00039549,7]
[314113326,1707993036572,-1000.0,0.00039549,2]
[314113327,1707993036582,-7525.9522,0.00039549,7]
[314113328,1707993036592,-55555.0,0.00039549,3]
[314113329,1707993036601,-177633.85348887,0.00039549,2]
[314113330,1707993036623,-67366.14651113,0.00039549,2]
[314113331,1707993036633,-1469.7194719,0.0003955,2]
[314113332,1707993036642,-160.47,0.00039567,2]
[314113333,1707993036652,-268.95177151,0.00039569,2]
[314113334,1707993036662,-500.0,0.00039605,7]
[314113335,1707993036671,-500.0,0.00039605,7]
[314113336,1707993036683,-232.55977275,0.00039649,7]
[314113337,1707993036694,-500.0,0.00039649,7]
[314113338,1707993036705,-500.0,0.00039649,7]
[314113339,1707993036715,-183.08557537,0.00039649,7]
[314113340,1707993036725,-530.66794805,0.00039649,7]
[314113341,1707993036736,-500.0,0.00039649,7]
[314113342,1707993036749,-500.0,0.00039649,7]
[314113343,1707993036760,-500.0,0.00039649,7]
[314113344,1707993036770,-500.0,0.00039649,7]
[314113345,1707993036779,-500.0,0.00039649,7]
[314113346,1707993036789,-269.40669475,0.00039649,7]
[314113347,1707993036799,-500.0,0.00039649,7]
[314113348,1707993036809,-534.46859835,0.00039649,7]
[314113349,1707993036818,-206.56815069,0.00039649,7]
[314113350,1707993036828,-500.0,0.00039649,7]
[314113351,1707993036838,-411.60850664,0.00039649,7]
[314113352,1707993036847,-530.45748926,0.00039649,7]
[314113353,1707993036856,-597.13,0.00039649,7]
[314113354,1707993036869,-500.0,0.00039649,7]
[314113355,1707993036878,-500.0,0.00039649,7]
[314113356,1707993036887,-359.62299444,0.00039649,7]
[314113357,1707993036897,-500.0,0.00039649,7]
[314113358,1707993036906,-529.36944675,0.00039649,7]
[314113359,1707993036916,-500.0,0.00039649,7]
[314113360,1707993036925,-618.85179848,0.00039649,7]
[314113361,1707993036934,-228.13474814,0.00039649,7]
[314113362,1707993036943,-804.83,0.00039649,7]
[314113363,1707993036952,-500.0,0.00039649,7]
[314113364,1707993036962,-500.0,0.00039649,7]
[314113365,1707993036971,-157.76914143,0.00039649,2]
[314113366,1707993036980,-252.75183983,0.00039649,7]
[314113367,1707993036992,-365.11877534,0.00039649,7]
[314113368,1707993037002,-500.0,0.00039649,7]
[314113369,1707993037011,-430.75682701,0.00039649,7]
[314113370,1707993037021,-500.0,0.00039649,7]
[314113371,1707993037030,-500.0,0.00039649,7]
[314113372,1707993037040,-318.61008163,0.00039649,2]
[314113373,1707993037052,-500.0,0.00039649,7]
[314113374,1707993037063,-500.0,0.00039649,7]
[314113375,1707993037075,-500.0,0.00039649,7]
[314113376,1707993037087,-500.0,0.00039649,7]
[314113377,1707993037095,-11162.94857549,0.00039649,2]
[314113378,1707993037112,-315.90016401,0.00039649,2]
[314113381,1707993038338,-500.0,0.00039539,7]
[314113382,1707993038348,-6999.2861605,0.00039649,2]
[314113383,1707993038357,-100000.0,0.00039649,2]
[314113384,1707993038366,-962.78071763,0.0003965,2]
[314113385,1707993038376,-268.9517715,0.00039652,2]
[314113386,1707993038386,-526.28457574,0.00039658,2]
[314113387,1707993038395,-300.93532572,0.00039658,2]
[314113388,1707993038405,-344.86812944,0.00039658,2]
[314113389,1707993038414,-315.19733058,0.00039658,2]
[314113390,1707993038423,-4236.27745153,0.00039659,13]
[314113391,1707993038432,-408.77,0.00039659,2]
[314113392,1707993038441,-152.99265331,0.00039669,5]
[314113393,1707993038451,-182.87636207,0.00039669,2]
[314113394,1707993038460,-3687.80050258,0.00039669,2]
[314113395,1707993038470,-500.0,0.0003968,20]
[314113396,1707993038479,-1500.0,0.00039699,2]
[314113397,1707993038488,-500.0,0.00039726,15]
[314113398,1707993038498,-190.62,0.00039731,2]
[314113399,1707993038507,-268.9517715,0.00039735,2]
[314113400,1707993038516,-151.0,0.00039749,7]
[314113401,1707993038526,-151.0,0.00039749,7]
[314113402,1707993038543,-214.05539657,0.00039749,3]
[314113403,1707993038556,-84049.81784583,0.00039749,5]
[314113404,1707993038570,-1068605.10961918,0.00039749,5]
[314113405,1707993038580,-569984.82239,0.00039749,4]
[314113406,1707993038590,-1894.5,0.00039758,2]
[314113407,1707993038600,-2315.5,0.00039759,2]
[314113408,1707993038610,-151.0,0.00039759,7]
[314113409,1707993038619,-151.0,0.00039759,7]
[314113410,1707993038629,-178.588131,0.00039759,7]
[314113411,1707993038639,-199.834948,0.00039759,7]
[314113412,1707993038648,-199.834948,0.00039759,7]
[314113413,1707993038658,-2860.93219222,0.00039759,2]
[314113414,1707993038668,-160.47,0.00039762,2]
[314113415,1707993038678,-312.45839079,0.00039765,31]
[314113416,1707993038688,-5000.0,0.00039767,3]
[314113417,1707993038697,-500.0,0.00039769,7]
[314113418,1707993038707,-500.0,0.00039769,7]
[314113419,1707993038717,-500.0,0.00039769,7]
[314113420,1707993038726,-500.0,0.00039769,7]
[314113421,1707993038737,-321.9177,0.0003977,120]
[314113422,1707993038746,-500.0,0.00039779,7]
[314113423,1707993038758,-500.0,0.00039779,7]
[314113424,1707993038767,-500.0,0.00039779,7]
[314113425,1707993038777,-500.0,0.00039779,7]
[314113426,1707993038787,-500.0,0.00039779,7]
[314113427,1707993038797,-500.0,0.00039779,7]
[314113428,1707993038810,-1861.7777757,0.00039806,2]
[314113429,1707993038819,-393.42,0.00039813,7]
[314113430,1707993038829,-500.0,0.00039813,7]
[314113431,1707993038840,-500.0,0.00039813,7]
[314113432,1707993038850,-500.0,0.00039813,7]
[314113433,1707993038859,-614.0,0.00039813,7]
[314113434,1707993038869,-500.0,0.00039813,7]
[314113435,1707993038879,-500.0,0.00039813,7]
[314113436,1707993038889,-500.0,0.00039813,7]
[314113437,1707993038899,-366.58325743,0.00039813,7]
[314113438,1707993038911,-160.70855259,0.00039813,7]
[314113439,1707993038920,-268.9517715,0.00039817,2]
[314113440,1707993038930,-275.15,0.00039822,7]
[314113441,1707993038940,-471.68,0.00039822,7]
[314113442,1707993038950,-846.48,0.00039822,7]
[314113443,1707993038959,-500.0,0.00039822,7]
[314113444,1707993038969,-395.08,0.00039822,7]
[314113445,1707993038978,-500.0,0.00039822,7]
[314113446,1707993038987,-500.0,0.00039822,7]
[314113447,1707993038997,-500.0,0.00039822,7]
[314113448,1707993039006,-167.5,0.00039822,7]
[314113449,1707993039015,-500.0,0.00039822,7]
[314113450,1707993039025,-500.0,0.00039822,7]
[314113451,1707993039035,-193.57,0.00039822,7]
[314113452,1707993039044,-500.0,0.00039822,7]
[314113453,1707993039054,-500.0,0.00039822,7]
[314113454,1707993039063,-448.74,0.00039822,7]
[314113455,1707993039073,-288.51,0.00039822,7]
[314113456,1707993039087,-724.33,0.00039822,7]
[314113457,1707993039097,-500.0,0.00039822,7]
[314113458,1707993039177,-311.29,0.00039822,7]
[314113459,1707993039189,-500.0,0.00039822,7]
[314113460,1707993039199,-500.0,0.00039822,7]
[314113461,1707993039209,-500.0,0.00039822,7]
[314113462,1707993039219,-545.28123739,0.00039823,7]
[314113463,1707993039229,-830.19,0.00039823,7]
[314113464,1707993039240,-572.19,0.00039823,7]
[314113465,1707993039249,-500.0,0.00039823,7]
[314113466,1707993039258,-8853.01,0.00039823,7]
[314113467,1707993039267,-500.0,0.00039823,7]
[314113468,1707993039276,-492.85772474,0.00039823,7]
[314113469,1707993039285,-500.0,0.00039823,7]
[314113470,1707993039294,-408.77,0.00039861,2]
[314113471,1707993039304,-500.0,0.00039869,7]
[314113472,1707993039312,-5000.0,0.00039869,2]
[314113473,1707993039322,-1000.0,0.00039869,2]
[314113474,1707993039334,-500.0,0.00039869,7]
[314113475,1707993039343,-300.0,0.00039869,2]
[314113476,1707993039352,-300.0,0.00039869,2]
[314113477,1707993039361,-300.0,0.00039869,2]
[314113478,1707993039370,-300.0,0.00039869,2]
[314113479,1707993039379,-300.0,0.00039869,2]
[314113480,1707993039388,-300.0,0.00039869,2]
[314113481,1707993039396,-302.27607124,0.00039869,2]
[314113482,1707993039406,-186.78666046,0.0003987,2]
[314113483,1707993039415,-242.84189625,0.0003987,2]
[314113484,1707993039424,-692.66943779,0.00039877,2]
[314113485,1707993039434,-500.0,0.00039879,7]
[314113486,1707993039442,-500.0,0.00039879,7]
[314113487,1707993039451,-500.0,0.00039879,7]
[314113488,1707993039460,-504546.33554474,0.0003988,2]
[314113489,1707993039469,-151.0,0.0003988,7]
[314113490,1707993039478,-155.861271,0.0003988,7]
[314113491,1707993039488,-151.0,0.0003988,7]
[314113492,1707993039497,-151.0,0.0003988,7]
[314113493,1707993039506,-199.834948,0.0003988,7]
[314113494,1707993039515,-199.834948,0.0003988,7]
[314113495,1707993039524,-151.0,0.0003988,7]
[314113496,1707993039533,-151.0,0.0003988,7]
[314113497,1707993039543,-151.021517,0.00039898,21]
[314113498,1707993039553,-500.0,0.00039899,7]
[314113499,1707993039562,-52098.70317853,0.000399,4]
[314113500,1707993039572,-166.42,0.000399,3]
[314113501,1707993039582,-268.9517715,0.000399,2]
[314113502,1707993039591,-318.17,0.00039923,7]
[314113503,1707993039600,-500.0,0.00039923,7]
[314113504,1707993039609,-597.13,0.00039923,7]
[314113505,1707993039619,-500.0,0.00039923,7]
[314113506,1707993039628,-555.63831004,0.00039923,7]
[314113507,1707993039637,-804.83,0.00039923,7]
[314113508,1707993039648,-329.74139983,0.00039923,7]
[314113509,1707993039658,-190.62,0.00039924,2]
[314113510,1707993039667,-429.24092962,0.00039942,9]
[314113511,1707993039676,-4236.27745153,0.00039954,13]
[314113512,1707993039686,-160.47,0.00039957,2]
[314113513,1707993039695,-1181.62,0.00039978,2]
[314113514,1707993039704,-200.0,0.00039987,3]
[314113515,1707993039713,-300.0,0.00039988,2]
[314113516,1707993039723,-1385.33887558,0.00039997,2]
[314113517,1707993039732,-500.0,0.00039999,31]
[314113518,1707993039742,-500.0,0.00039999,31]
[314113519,1707993039753,-500.0,0.00039999,31]
[314113520,1707993039763,-400.78732134,0.00039999,31]
[314113521,1707993039772,-500.0,0.00039999,31]
[314113522,1707993039781,-500.0,0.00039999,31]
[314113523,1707993039791,-500.0,0.00039999,31]
[314113524,1707993039801,-500.0,0.00039999,31]
[314113525,1707993039810,-500.0,0.00039999,31]
[314113526,1707993039819,-500.0,0.00039999,31]
[314113527,1707993039830,-500.0,0.00039999,31]
[314113528,1707993039839,-500.0,0.00039999,31]
[314113529,1707993039851,-500.0,0.00039999,31]
[314113530,1707993039860,-500.0,0.00039999,31]
[314113531,1707993039870,-500.0,0.00039999,31]
[314113532,1707993039880,-500.0,0.00039999,31]
[314113533,1707993039889,-500.0,0.00039999,31]
[314113534,1707993039899,-500.0,0.00039999,31]
[314113535,1707993039908,-500.0,0.00039999,31]
[314113536,1707993039917,-500.0,0.00039999,31]
[314113537,1707993039927,-500.0,0.00039999,31]
[314113538,1707993039936,-500.0,0.00039999,31]
[314113539,1707993039946,-500.0,0.00039999,31]
[314113540,1707993039956,-500.0,0.00039999,31]
[314113541,1707993039965,-500.0,0.00039999,31]
[314113542,1707993039975,-500.0,0.00039999,31]
[314113543,1707993039985,-500.0,0.00039999,31]
[314113544,1707993039994,-500.0,0.00039999,31]
[314113545,1707993040004,-500.0,0.00039999,31]
[314113546,1707993040014,-500.0,0.00039999,31]
[314113547,1707993040024,-500.0,0.00039999,31]
[314113548,1707993040035,-321.92135847,0.00039999,31]
[314113549,1707993040045,-500.0,0.00039999,31]
[314113550,1707993040055,-500.0,0.00039999,31]
[314113551,1707993040066,-500.0,0.00039999,31]
[314113552,1707993040077,-500.0,0.00039999,31]
[314113553,1707993040087,-500.0,0.00039999,31]
[314113554,1707993040096,-500.0,0.00039999,31]
[314113556,1707993040106,-500.0,0.00039999,31]
[314113557,1707993040116,-500.0,0.00039999,31]
[314113558,1707993040126,-500.0,0.00039999,31]
[314113559,1707993040136,-500.0,0.00039999,31]
[314113560,1707993040146,-500.0,0.00039999,31]
[314113561,1707993040157,-500.0,0.00039999,31]
[314113562,1707993040167,-500.0,0.00039999,31]
[314113563,1707993040177,-500.0,0.00039999,31]
[314113564,1707993040186,-500.0,0.00039999,31]
[314113565,1707993040196,-500.0,0.00039999,31]
[314113566,1707993040206,-500.0,0.00039999,31]
[314113567,1707993040215,-500.0,0.00039999,31]
[314113568,1707993040225,-500.0,0.00039999,31]
[314113569,1707993040235,-500.0,0.00039999,31]
[314113570,1707993040245,-500.0,0.00039999,31]
[314113571,1707993040256,-500.0,0.00039999,31]
[314113572,1707993040266,-500.0,0.00039999,31]
[314113573,1707993040276,-500.0,0.00039999,31]
[314113574,1707993040286,-500.0,0.00039999,31]
[314113575,1707993040295,-500.0,0.00039999,31]
[314113576,1707993040305,-500.0,0.00039999,31]
[314113577,1707993040314,-476.81788925,0.00039999,31]
[314113578,1707993040324,-500.0,0.00039999,31]
[314113579,1707993040334,-500.0,0.00039999,31]
[314113580,1707993040345,-500.0,0.00039999,31]
[314113581,1707993040354,-500.0,0.00039999,31]
[314113582,1707993040364,-500.0,0.00039999,31]
[314113583,1707993040374,-500.0,0.00039999,31]
[314113584,1707993040383,-500.0,0.00039999,31]
[314113585,1707993040393,-500.0,0.00039999,31]
[314113586,1707993040402,-500.0,0.00039999,31]
[314113587,1707993040412,-500.0,0.00039999,31]
[314113588,1707993040421,-586.96737689,0.00039999,31]
[314113589,1707993040431,-500.0,0.00039999,31]
[314113590,1707993040441,-500.0,0.00039999,31]
[314113591,1707993040451,-500.0,0.00039999,31]
[314113592,1707993040460,-500.0,0.00039999,31]
[314113593,1707993040470,-500.0,0.00039999,31]
[314113594,1707993040479,-200.0,0.00039999,31]
[314113595,1707993040489,-500.0,0.00039999,31]
[314113596,1707993040499,-500.0,0.00039999,31]
[314113597,1707993040508,-500.0,0.00039999,31]
[314113598,1707993040518,-500.0,0.00039999,31]
[314113599,1707993040528,-500.0,0.00039999,31]
[314113600,1707993040537,-207.08589213,0.00039999,31]
[314113601,1707993040547,-500.0,0.00039999,31]
[314113602,1707993040558,-500.0,0.00039999,31]
[314113603,1707993040568,-500.0,0.00039999,31]
[314113604,1707993040578,-500.0,0.00039999,31]
[314113605,1707993040587,-500.0,0.00039999,31]
[314113606,1707993040597,-500.0,0.00039999,31]
[314113607,1707993040607,-500.0,0.00039999,31]
[314113608,1707993040617,-500.0,0.00039999,31]
[314113609,1707993040627,-500.0,0.00039999,31]
[314113610,1707993040637,-650.0,0.00039999,31]
[314113611,1707993040648,-583.33333333,0.00039999,31]
[314113612,1707993040659,-583.33333333,0.00039999,31]
[314113613,1707993040669,-583.33333333,0.00039999,31]
[314113614,1707993040679,-583.33333333,0.00039999,31]
[314113615,1707993040689,-583.33333333,0.00039999,31]
[314113616,1707993040699,-583.33333333,0.00039999,31]
[314113617,1707993040709,-500.0,0.00039999,7]
[314113618,1707993040719,-500.0,0.00039999,7]
[314113619,1707993040729,-500.0,0.00039999,7]
[314113620,1707993040740,-500.0,0.00039999,7]
[314113621,1707993040751,-100000.0,0.0004,20]
[314113622,1707993040761,-176.25291152,0.0004,120]
[314113623,1707993040771,-814711.92127468,0.0004,30]
[314113624,1707993040787,-363.25872601,0.0004,30]
[314113625,1707993040836,-26132.5,0.0004,30]
[314113628,1707993041140,-3028.82280944,0.00033747,10]
[314113629,1707993041152,-500.0,0.00039539,2]
[314113630,1707993041163,-500.0,0.00039548,7]
[314113631,1707993041174,-500.0,0.00039549,2]
[314113632,1707993041185,-800.89240291,0.00039658,2]
[314113633,1707993041194,-9039.86633355,0.0004,30]
[314113634,1707993041206,-1434.34124094,0.0004,10]
[314113635,1707993041217,-3538.11,0.0004,14]
[314113636,1707993041229,-255.0,0.0004,12]
[314113637,1707993041240,-255.0,0.0004,12]
[314113638,1707993041251,-185.859569,0.0004,7]
[314113639,1707993041262,-255.0,0.0004,12]
[314113640,1707993041274,-255.0,0.0004,12]
[314113641,1707993041285,-255.0,0.0004,12]
[314113642,1707993041296,-151.0,0.0004,7]
[314113643,1707993041307,-255.0,0.0004,12]
[314113644,1707993041318,-151.0,0.0004,7]
[314113645,1707993041329,-199.834948,0.0004,7]
[314113646,1707993041339,-199.834948,0.0004,7]
[314113647,1707993041350,-1594.7395398,0.0004,7]
[314113648,1707993041361,-255.0,0.0004,12]
[314113649,1707993041372,-151.0,0.0004,7]
[314113650,1707993041385,-151.0,0.0004,7]
[314113651,1707993041394,-1500.0,0.00040007,2]
[314113652,1707993041404,-200.0,0.0004001,20]
[314113653,1707993041413,-408.77,0.00040062,2]
[314113654,1707993041423,-500.0,0.00040087,7]
[314113655,1707993041433,-500.0,0.00040087,7]
[314113656,1707993041442,-518.08,0.00040087,7]
[314113657,1707993041452,-500.0,0.00040087,7]
[314113658,1707993041461,-500.0,0.00040087,7]
[314113659,1707993041471,-830.19,0.00040096,7]
[314113660,1707993041480,-572.19,0.00040096,7]
[314113661,1707993041490,-846.48,0.00040096,7]
[314113662,1707993041500,-500.0,0.00040096,7]
[314113663,1707993041510,-500.0,0.00040096,7]
[314113664,1707993041520,-642.35,0.00040096,7]
[314113665,1707993041530,-500.0,0.00040096,7]
[314113666,1707993041540,-2031.97954872,0.00040096,7]
[314113667,1707993041556,-2632.9999,0.00040096,7]
[314113668,1707993041569,-4188.03055128,0.00040096,7]
[314113669,1707993041579,-193.96,0.00040096,7]
[314113670,1707993041589,-500.0,0.00040096,7]
[314113671,1707993041599,-500.0,0.00040096,7]
[314113672,1707993041609,-286.94,0.00040096,7]
[314113673,1707993041619,-395.42,0.00040096,7]
[314113674,1707993041629,-164.81,0.00040096,7]
[314113675,1707993041639,-724.33,0.00040096,7]
[314113676,1707993041649,-500.0,0.00040096,7]
[314113677,1707993041659,-500.0,0.00040096,7]
[314113678,1707993041669,-428.89867325,0.00040096,7]
[314113679,1707993041681,-71.10132675,0.00040096,7]
[314113680,1707993041692,-500.0,0.00040096,7]